fUSD/lending_fUSD_20250302
["ID","MTS","AMOUNT","RATE_DAILY","PERIOD"]
[355086678,1740887503149,-500.0,0.00027945,2]
[355086680,1740887503158,-1326.11,0.00027945,2]
[355086682,1740887503168,-522.59,0.00027945,2]
[355086684,1740887503177,-631.45776847,0.00027945,2]
[355086685,1740887503187,-863.92,0.00027945,2]
[355086687,1740887503196,-500.0,0.00027945,2]
[355086689,1740887503207,-500.0,0.00027945,2]
[355086691,1740887503216,-1570.35,0.00027945,2]
[355086693,1740887503226,-1416.37,0.00027945,2]
[355086695,1740887503235,-500.0,0.00027945,2]
[355086697,1740887503244,-599.84,0.00027945,2]
[355086699,1740887503254,-1711.31,0.00027945,2]
[355086701,1740887503263,-152.0,0.00027958,4]
[355086703,1740887503272,-1040.53477436,0.00027967,2]
[355086705,1740887503282,-2000.28,0.00028,3]
[355086707,1740887503292,-2110.0,0.00028,2]
[355086709,1740887503301,-157.03,0.00028106,2]
[355086711,1740887503310,-500.0,0.00028118,2]
[355086713,1740887503320,-150.0,0.000282,2]
[355086715,1740887503329,-500.0,0.00028218,2]
[355086717,1740887503339,-2206.95,0.00028218,2]
[355086719,1740887503348,-1593.1,0.00028218,2]
[355086721,1740887503357,-1214.58,0.00028218,2]
[355086723,1740887503366,-604.69,0.00028218,2]
[355086725,1740887503376,-1815.67,0.00028218,2]
[355086727,1740887503385,-2287.74,0.00028218,2]
[355086728,1740887503394,-1353.94,0.00028218,2]
[355086730,1740887503403,-882.39,0.00028218,2]
[355086732,1740887503412,-1111.3,0.00028218,2]
[355086734,1740887503422,-2523.38,0.00028218,2]
[355086736,1740887503431,-500.0,0.00028218,2]
[355086738,1740887503440,-1004.64,0.00028218,2]
[355086740,1740887503450,-1813.84,0.00028218,2]
[355086742,1740887503459,-1689.15,0.00028218,2]
[355086744,1740887503468,-1000.0,0.00028218,2]
[355086746,1740887503477,-1508.64,0.00028218,2]
[355086748,1740887503487,-500.0,0.00028218,2]
[355086750,1740887503496,-1571.69,0.00028218,2]
[355086752,1740887503506,-609.55,0.00028218,2]
[355086754,1740887503515,-500.0,0.00028219,2]
[355086756,1740887503524,-500.0,0.00028219,2]
[355086758,1740887503533,-615.81,0.00028219,2]
[355086760,1740887503543,-500.0,0.00028219,2]
[355086762,1740887503552,-500.0,0.00028219,2]
[355086764,1740887503562,-500.0,0.00028219,2]
[355086765,1740887503571,-500.0,0.00028219,2]
[355086767,1740887503581,-486.5160934,0.00028219,2]
[355086769,1740887503590,-500.0,0.00028219,2]
[355086771,1740887503600,-500.0,0.00028219,2]
[355086773,1740887503614,-500.0,0.00028219,2]
[355086775,1740887503623,-631.76,0.00028219,2]
[355086777,1740887503633,-500.0,0.00028219,2]
[355086779,1740887503642,-337.85063926,0.00028219,2]
[355086781,1740887503653,-500.0,0.00028219,2]
[355086783,1740887503662,-513.38,0.00028219,2]
[355086785,1740887503673,-571.2,0.00028219,2]
[355086787,1740887503684,-532.52,0.00028219,2]
[355086789,1740887503694,-805.392929,0.00028219,2]
[355086791,1740887503705,-500.0,0.00028219,2]
[355086793,1740887503714,-617.82,0.00028219,2]
[355086795,1740887503723,-792.3,0.00028219,2]
[355086797,1740887503733,-915.56,0.00028219,2]
[355086799,1740887503742,-811.726163,0.00028219,2]
[355086801,1740887503752,-985.91,0.00028219,2]
[355086803,1740887503762,-607.74,0.00028219,2]
[355086805,1740887503771,-500.0,0.00028219,2]
[355086807,1740887503782,-158.62,0.00028219,2]
[355086809,1740887503791,-500.0,0.00028219,2]
[355086811,1740887503800,-287.15,0.00028219,2]
[355086813,1740887503810,-713.04,0.00028219,2]
[355086815,1740887503820,-563.62,0.00028219,2]
[355086817,1740887503830,-500.0,0.00028219,2]
[355086819,1740887503839,-295.4173792,0.00028219,2]
[355086821,1740887503848,-500.0,0.00028219,2]
[355086823,1740887503858,-234.85,0.00028219,2]
[355086824,1740887503868,-500.0,0.00028219,2]
[355086826,1740887503877,-218.2,0.00028219,2]
[355086828,1740887503886,-887.27,0.00028219,2]
[355086830,1740887503896,-901.65,0.00028219,2]
[355086832,1740887503905,-826.95,0.00028219,2]
[355086834,1740887503915,-500.0,0.00028219,2]
[355086836,1740887503924,-500.0,0.00028219,2]
[355086838,1740887503933,-649.44,0.00028219,2]
[355086840,1740887503943,-642.02,0.00028219,2]
[355086842,1740887503953,-500.0,0.00028219,2]
[355086844,1740887503962,-522.88,0.00028219,2]
[355086846,1740887503972,-500.0,0.00028219,2]
[355086848,1740887503981,-500.0,0.00028219,2]
[355086850,1740887503990,-500.0,0.00028219,2]
[355086852,1740887504000,-1059.55,0.00028219,2]
[355086854,1740887504009,-500.0,0.00028219,2]
[355086856,1740887504018,-309.43,0.00028219,2]
[355086857,1740887504027,-500.0,0.00028219,2]
[355086859,1740887504037,-581.73,0.00028219,2]
[355086861,1740887504046,-565.1,0.00028219,2]
[355086863,1740887504056,-500.0,0.00028219,2]
[355086865,1740887504065,-628.42,0.00028219,2]
[355086867,1740887504075,-500.0,0.00028219,2]
[355086869,1740887504086,-867.58,0.00028219,2]
[355086871,1740887504095,-500.0,0.00028219,2]
[355086873,1740887504105,-1218.62,0.00028219,2]
[355086875,1740887504115,-500.0,0.00028219,2]
[355086877,1740887504124,-1015.97,0.00028219,2]
[355086879,1740887504134,-500.0,0.00028219,2]
[355086881,1740887504145,-1288.29,0.00028219,2]
[355086883,1740887504154,-856.24,0.00028219,2]
[355086885,1740887504163,-500.0,0.00028219,2]
[355086887,1740887504173,-577.63,0.00028219,2]
[355086889,1740887504183,-1023.39,0.00028219,2]
[355086891,1740887504192,-526.07,0.00028219,2]
[355086893,1740887504201,-1167.74,0.00028219,2]
[355086895,1740887504210,-1673.85,0.00028219,2]
[355086897,1740887504219,-2540.27,0.00028219,2]
[355086898,1740887504228,-566.11,0.00028219,2]
[355086900,1740887504238,-752.51,0.00028219,2]
[355086902,1740887504247,-1557.28,0.00028219,2]
[355086904,1740887504256,-870.61,0.00028219,2]
[355086906,1740887504265,-1783.03,0.00028219,2]
[355086908,1740887504275,-533.75,0.00028219,2]
[355086910,1740887504284,-2012.85,0.00028219,2]
[355086912,1740887504293,-1176.97,0.00028219,2]
[355086914,1740887504302,-844.33,0.00028219,2]
[355086915,1740887504311,-1475.57,0.00028219,2]
[355086917,1740887504320,-1746.05,0.00028219,2]
[355086919,1740887504329,-599.92,0.00028219,2]
[355086921,1740887504339,-500.0,0.00028219,2]
[355086923,1740887504348,-1535.97,0.00028219,2]
[355086925,1740887504357,-1274.93,0.00028219,2]
[355086927,1740887504366,-500.0,0.00028219,2]
[355086929,1740887504376,-608.12,0.00028219,2]
[355086931,1740887504385,-515.13,0.00028219,2]
[355086932,1740887504394,-733.69,0.00028219,2]
[355086934,1740887504405,-560.4,0.00028219,2]
[355086936,1740887504414,-500.0,0.00028219,2]
[355086938,1740887504423,-1341.6,0.00028219,2]
[355086940,1740887504432,-1584.9,0.00028219,2]
[355086942,1740887504441,-1078.1,0.00028219,2]
[355086944,1740887504451,-1521.75,0.00028219,2]
[355086946,1740887504460,-1865.0,0.00028219,2]
[355086948,1740887504469,-500.0,0.00028219,2]
[355086949,1740887504478,-1655.28,0.00028219,2]
[355086951,1740887504489,-500.0,0.00028219,2]
[355086953,1740887504498,-1038.07,0.00028219,2]
[355086955,1740887504507,-500.0,0.00028219,2]
[355086957,1740887504517,-371.30956981,0.00028219,2]
[355086959,1740887504526,-500.0,0.00028219,2]
[355086961,1740887504535,-742.83,0.00028219,2]
[355086963,1740887504544,-938.31,0.00028219,2]
[355086965,1740887504553,-211.08,0.00028219,2]
[355086967,1740887504562,-1459.72,0.00028219,2]
[355086969,1740887504571,-532.91,0.00028219,2]
[355086971,1740887504580,-500.0,0.00028219,2]
[355086972,1740887504589,-994.97,0.00028219,2]
[355086974,1740887504599,-500.0,0.00028219,2]
[355086976,1740887504610,-709.92,0.00028219,2]
[355086978,1740887504619,-1170.83,0.00028219,2]
[355086980,1740887504628,-500.0,0.00028219,2]
[355086982,1740887504637,-1135.5,0.00028219,2]
[355086984,1740887504647,-476.51790474,0.00028219,2]
[355086986,1740887504656,-839.78,0.00028219,2]
[355086987,1740887504665,-707.46,0.00028219,2]
[355086989,1740887504674,-500.0,0.00028219,2]
[355086991,1740887504684,-696.66,0.00028219,2]
[355086993,1740887504694,-619.89,0.00028219,2]
[355086995,1740887504703,-500.0,0.00028219,2]
[355086997,1740887504713,-590.17,0.00028219,2]
[355086999,1740887504724,-1502.86,0.00028219,2]
[355087001,1740887504733,-500.0,0.00028219,2]
[355087003,1740887504742,-500.0,0.00028219,2]
[355087005,1740887504752,-1326.11,0.00028219,2]
[355087007,1740887504761,-522.59,0.00028219,2]
[355087008,1740887504771,-863.92,0.00028219,2]
[355087010,1740887504781,-500.0,0.00028219,2]
[355087012,1740887504791,-500.0,0.00028219,2]
[355087014,1740887504801,-1570.35,0.00028219,2]
[355087016,1740887504810,-1416.37,0.00028219,2]
[355087018,1740887504820,-500.0,0.00028219,2]
[355087020,1740887504829,-599.84,0.00028219,2]
[355087022,1740887504840,-1711.31,0.00028219,2]
[355087024,1740887504850,-150.0,0.00028226,2]
[355087026,1740887504859,-284.76176158,0.00028245,5]
[355087028,1740887504869,-150.0,0.000283,2]
[355087030,1740887504878,-150.0,0.00028352,2]
[355087032,1740887504888,-1040.53477436,0.00028393,2]
[355087034,1740887504898,-159.0,0.000284,18]
[355087036,1740887504907,-400.0,0.0002847,2]
[355087038,1740887504917,-400.0,0.0002847,2]
[355087040,1740887504926,-700.0,0.0002847,2]
[355087042,1740887504936,-160.5,0.00028482,30]
[355087044,1740887504946,-150.0,0.00028491,2]
[355087046,1740887504956,-151.0,0.00028492,7]
[355087047,1740887504966,-151.0,0.00028492,7]
[355087049,1740887504976,-151.0,0.00028492,7]
[355087051,1740887504985,-500.0,0.00028492,2]
[355087053,1740887504995,-2206.95,0.00028492,2]
[355087055,1740887505004,-1593.1,0.00028492,2]
[355087057,1740887505013,-1214.58,0.00028492,2]
[355087059,1740887505023,-604.69,0.00028492,2]
[355087061,1740887505033,-1815.67,0.00028492,2]
[355087063,1740887505042,-2287.74,0.00028492,2]
[355087065,1740887505052,-1353.94,0.00028492,2]
[355087067,1740887505062,-882.39,0.00028492,2]
[355087069,1740887505071,-1111.3,0.00028492,2]
[355087071,1740887505081,-2523.38,0.00028492,2]
[355087073,1740887505091,-500.0,0.00028492,2]
[355087075,1740887505101,-1004.64,0.00028492,2]
[355087077,1740887505110,-1813.84,0.00028492,2]
[355087079,1740887505121,-1689.15,0.00028492,2]
[355087081,1740887505130,-1000.0,0.00028492,2]
[355087083,1740887505140,-1508.64,0.00028492,2]
[355087085,1740887505149,-1571.69,0.00028492,2]
[355087087,1740887505160,-609.55,0.00028492,2]
[355087089,1740887505169,-500.0,0.00028493,2]
[355087091,1740887505179,-500.0,0.00028493,2]
[355087093,1740887505189,-615.81,0.00028493,2]
[355087095,1740887505199,-500.0,0.00028493,2]
[355087097,1740887505209,-500.0,0.00028493,2]
[355087099,1740887505218,-230.12,0.00028493,2]
[355087101,1740887505227,-500.0,0.00028493,2]
[355087103,1740887505237,-500.0,0.00028493,2]
[355087105,1740887505247,-500.0,0.00028493,2]
[355087106,1740887505257,-500.0,0.00028493,2]
[355087109,1740887505266,-500.0,0.00028493,2]
[355087110,1740887505276,-500.0,0.00028493,2]
[355087112,1740887505286,-513.38,0.00028493,2]
[355087114,1740887505295,-805.392929,0.00028493,2]
[355087116,1740887505306,-500.0,0.00028493,2]
[355087118,1740887505315,-617.82,0.00028493,2]
[355087120,1740887505324,-792.3,0.00028493,2]
[355087122,1740887505333,-915.56,0.00028493,2]
[355087124,1740887505343,-811.726163,0.00028493,2]
[355087126,1740887505353,-985.91,0.00028493,2]
[355087128,1740887505363,-261.54,0.00028493,2]
[355087129,1740887505373,-607.74,0.00028493,2]
[355087130,1740887505382,-446.0,0.00028493,2]
[355087131,1740887505392,-713.04,0.00028493,2]
[355087132,1740887505402,-563.62,0.00028493,2]
[355087133,1740887505411,-500.0,0.00028493,2]
[355087134,1740887505420,-500.0,0.00028493,2]
[355087135,1740887505430,-500.0,0.00028493,2]
[355087136,1740887505440,-887.27,0.00028493,2]
[355087137,1740887505450,-901.65,0.00028493,2]
[355087138,1740887505460,-826.95,0.00028493,2]
[355087139,1740887505470,-500.0,0.00028493,2]
[355087140,1740887505480,-500.0,0.00028493,2]
[355087141,1740887505490,-642.02,0.00028493,2]
[355087142,1740887505500,-500.0,0.00028493,2]
[355087143,1740887505510,-522.88,0.00028493,2]
[355087144,1740887505520,-584.06930045,0.00028493,2]
[355087145,1740887505529,-500.0,0.00028493,2]
[355087146,1740887505539,-500.0,0.00028493,2]
[355087147,1740887505549,-1059.55,0.00028493,2]
[355087148,1740887505559,-500.0,0.00028493,2]
[355087149,1740887505569,-500.0,0.00028493,2]
[355087150,1740887505579,-581.73,0.00028493,2]
[355087151,1740887505589,-565.1,0.00028493,2]
[355087152,1740887505599,-500.0,0.00028493,2]
[355087153,1740887505615,-628.42,0.00028493,2]
[355087154,1740887505625,-340.44769612,0.00028493,2]
[355087155,1740887505635,-867.58,0.00028493,2]
[355087157,1740887505644,-500.0,0.00028493,2]
[355087159,1740887505655,-1218.62,0.00028493,2]
[355087161,1740887505665,-560.71827807,0.00028493,2]
[355087163,1740887505674,-1015.97,0.00028493,2]
[355087165,1740887505684,-500.0,0.00028493,2]
[355087167,1740887505694,-1288.29,0.00028493,2]
[355087169,1740887505704,-856.24,0.00028493,2]
[355087171,1740887505715,-500.0,0.00028493,2]
[355087173,1740887505724,-1023.39,0.00028493,2]
[355087175,1740887505734,-577.63,0.00028493,2]
[355087177,1740887505743,-1167.74,0.00028493,2]
[355087179,1740887505753,-1673.85,0.00028493,2]
[355087181,1740887505763,-2540.27,0.00028493,2]
[355087183,1740887505773,-566.11,0.00028493,2]
[355087185,1740887505783,-752.51,0.00028493,2]
[355087187,1740887505792,-1557.28,0.00028493,2]
[355087189,1740887505802,-870.61,0.00028493,2]
[355087191,1740887505812,-1783.03,0.00028493,2]
[355087193,1740887505822,-533.75,0.00028493,2]
[355087195,1740887505831,-2012.85,0.00028493,2]
[355087197,1740887505841,-1176.97,0.00028493,2]
[355087199,1740887505851,-844.33,0.00028493,2]
[355087201,1740887505861,-1475.57,0.00028493,2]
[355087203,1740887505871,-1746.05,0.00028493,2]
[355087205,1740887505881,-599.92,0.00028493,2]
[355087207,1740887505890,-500.0,0.00028493,2]
[355087209,1740887505900,-1535.97,0.00028493,2]
[355087211,1740887505910,-1274.93,0.00028493,2]
[355087213,1740887505919,-500.0,0.00028493,2]
[355087215,1740887505928,-608.12,0.00028493,2]
[355087217,1740887505938,-515.13,0.00028493,2]
[355087219,1740887505948,-733.69,0.00028493,2]
[355087220,1740887505959,-560.4,0.00028493,2]
[355087222,1740887505969,-500.0,0.00028493,2]
[355087224,1740887505978,-1341.6,0.00028493,2]
[355087226,1740887505988,-1584.9,0.00028493,2]
[355087228,1740887505998,-1078.1,0.00028493,2]
[355087230,1740887506007,-1521.75,0.00028493,2]
[355087232,1740887506017,-1865.0,0.00028493,2]
[355087234,1740887506026,-500.0,0.00028493,2]
[355087236,1740887506037,-1655.28,0.00028493,2]
[355087238,1740887506047,-500.0,0.00028493,2]
[355087240,1740887506056,-1038.07,0.00028493,2]
[355087242,1740887506066,-220.93,0.00028493,2]
[355087244,1740887506076,-500.0,0.00028493,2]
[355087246,1740887506085,-742.83,0.00028493,2]
[355087248,1740887506095,-938.31,0.00028493,2]
[355087250,1740887506104,-1459.72,0.00028493,2]
[355087252,1740887506113,-532.91,0.00028493,2]
[355087254,1740887506124,-500.0,0.00028493,2]
[355087256,1740887506133,-994.97,0.00028493,2]
[355087258,1740887506143,-500.0,0.00028493,2]
[355087260,1740887506152,-709.92,0.00028493,2]
[355087262,1740887506162,-1170.83,0.00028493,2]
[355087264,1740887506171,-500.0,0.00028493,2]
[355087266,1740887506181,-1135.5,0.00028493,2]
[355087268,1740887506191,-839.78,0.00028493,2]
[355087269,1740887506200,-707.46,0.00028493,2]
[355087289,1740887506364,-500.0,0.00028493,2]
[355087291,1740887506391,-696.66,0.00028493,2]
[355087293,1740887506401,-619.89,0.00028493,2]
[355087295,1740887506411,-500.0,0.00028493,2]
[355087297,1740887506420,-590.17,0.00028493,2]
[355087299,1740887506430,-1502.86,0.00028493,2]
[355087301,1740887506440,-500.0,0.00028493,2]
[355087303,1740887506449,-500.0,0.00028493,2]
[355087305,1740887506459,-1326.11,0.00028493,2]
[355087307,1740887506468,-522.59,0.00028493,2]
[355087309,1740887506478,-863.92,0.00028493,2]
[355087311,1740887506487,-500.0,0.00028493,2]
[355087313,1740887506497,-500.0,0.00028493,2]
[355087315,1740887506507,-1570.35,0.00028493,2]
[355087317,1740887506517,-1416.37,0.00028493,2]
[355087319,1740887506527,-192.73,0.00028493,2]
[355087321,1740887506537,-599.84,0.00028493,2]
[355087323,1740887506547,-1711.31,0.00028493,2]
[355087325,1740887506557,-1636.11903,0.00028499,2]
[355087327,1740887506566,-500.0,0.00028499,2]
[355087329,1740887506576,-157162.76461329,0.000285,3]
[355087331,1740887506586,-108658.17234427,0.000285,3]
[355087333,1740887506595,-200.0,0.000285,2]
[355087335,1740887506607,-151.0,0.000285,7]
[355087336,1740887506619,-151.0,0.000285,7]
[355087338,1740887506629,-157.117083,0.000285,7]
[355087340,1740887506639,-1000.0,0.000285,2]
[355087342,1740887506650,-1399.85082,0.000285,7]
[355087344,1740887506662,-151.0,0.000285,7]
[355087346,1740887506671,-2110.0,0.000285,2]
[355087348,1740887506682,-151.0,0.000285,7]
[355087351,1740887506692,-151.431559,0.000285,7]
[355087353,1740887506703,-500.0,0.00028506,2]
[355087354,1740887506713,-205.0,0.0002851,2]
[355087357,1740887506724,-550.4519547,0.00028536,2]
[355087358,1740887506734,-284.76176158,0.00028555,5]
[355087361,1740887506744,-3217.3903843,0.00028623,2]
[355087362,1740887506754,-443.42941625,0.00028643,2]
[355087365,1740887506764,-5363.0906837,0.00028679,2]
[355087367,1740887506774,-1000.0,0.000287,2]
[355087369,1740887506784,-1062.32,0.00028712,2]
[355087371,1740887506794,-901.55,0.00028762,90]
[355087372,1740887506804,-500.0,0.00028765,2]
[355087374,1740887506814,-500.0,0.00028766,2]
[355087376,1740887506824,-2206.95,0.00028766,2]
[355087379,1740887506834,-1593.1,0.00028766,2]
[355087381,1740887506845,-1214.58,0.00028766,2]
[355087383,1740887506855,-604.69,0.00028766,2]
[355087385,1740887506865,-1815.67,0.00028766,2]
[355087387,1740887506875,-2287.74,0.00028766,2]
[355087389,1740887506884,-1353.94,0.00028766,2]
[355087391,1740887506894,-882.39,0.00028766,2]
[355087393,1740887506903,-1111.3,0.00028766,2]
[355087395,1740887506913,-2523.38,0.00028766,2]
[355087397,1740887506922,-394.16,0.00028766,2]
[355087399,1740887506932,-1004.64,0.00028766,2]
[355087401,1740887506943,-1813.84,0.00028766,2]
[355087403,1740887506953,-1689.15,0.00028766,2]
[355087405,1740887506963,-1000.0,0.00028766,2]
[355087407,1740887506972,-1508.64,0.00028766,2]
[355087409,1740887506982,-1571.69,0.00028766,2]
[355087411,1740887506992,-609.55,0.00028766,2]
[355087413,1740887507001,-500.0,0.00028767,2]
[355087415,1740887507011,-500.0,0.00028767,2]
[355087417,1740887507020,-500.0,0.00028767,2]
[355087419,1740887507031,-615.81,0.00028767,2]
[355087421,1740887507041,-500.0,0.00028767,2]
[355087423,1740887507052,-567.12507299,0.00028767,2]
[355087425,1740887507061,-584.11,0.00028767,2]
[355087427,1740887507071,-500.0,0.00028767,2]
[355087429,1740887507081,-500.0,0.00028767,2]
[355087431,1740887507091,-500.0,0.00028767,2]
[355087433,1740887507100,-500.0,0.00028767,2]
[355087435,1740887507110,-500.0,0.00028767,2]
[355087437,1740887507119,-513.38,0.00028767,2]
[355087439,1740887507128,-805.392929,0.00028767,2]
[355087441,1740887507138,-500.0,0.00028767,2]
[355087443,1740887507148,-617.82,0.00028767,2]
[355087445,1740887507158,-792.3,0.00028767,2]
[355087447,1740887507168,-915.56,0.00028767,2]
[355087449,1740887507178,-811.726163,0.00028767,2]
[355087451,1740887507187,-985.91,0.00028767,2]
[355087453,1740887507197,-607.74,0.00028767,2]
[355087455,1740887507207,-713.04,0.00028767,2]
[355087457,1740887507217,-563.62,0.00028767,2]
[355087458,1740887507226,-500.0,0.00028767,2]
[355087460,1740887507236,-253.21155174,0.00028767,2]
[355087463,1740887507245,-500.0,0.00028767,2]
[355087464,1740887507256,-887.27,0.00028767,2]
[355087467,1740887507266,-901.65,0.00028767,2]
[355087469,1740887507276,-826.95,0.00028767,2]
[355087471,1740887507286,-500.0,0.00028767,2]
[355087472,1740887507295,-500.0,0.00028767,2]
[355087474,1740887507305,-642.02,0.00028767,2]
[355087476,1740887507315,-500.0,0.00028767,2]
[355087478,1740887507324,-522.88,0.00028767,2]
[355087481,1740887507335,-500.0,0.00028767,2]
[355087483,1740887507344,-500.0,0.00028767,2]
[355087484,1740887507354,-1059.55,0.00028767,2]
[355087487,1740887507364,-500.0,0.00028767,2]
[355087488,1740887507373,-500.0,0.00028767,2]
[355087490,1740887507383,-581.73,0.00028767,2]
[355087492,1740887507393,-565.1,0.00028767,2]
[355087495,1740887507403,-500.0,0.00028767,2]
[355087497,1740887507413,-628.42,0.00028767,2]
[355087499,1740887507422,-867.58,0.00028767,2]
[355087501,1740887507431,-500.0,0.00028767,2]
[355087503,1740887507441,-1218.62,0.00028767,2]
[355087505,1740887507451,-1015.97,0.00028767,2]
[355087506,1740887507462,-500.0,0.00028767,2]
[355087508,1740887507472,-1288.29,0.00028767,2]
[355087510,1740887507482,-856.24,0.00028767,2]
[355087512,1740887507492,-500.0,0.00028767,2]
[355087514,1740887507502,-1023.39,0.00028767,2]
[355087516,1740887507511,-577.63,0.00028767,2]
[355087518,1740887507520,-1167.74,0.00028767,2]
[355087520,1740887507529,-1673.85,0.00028767,2]
[355087522,1740887507539,-2540.27,0.00028767,2]
[355087524,1740887507549,-566.11,0.00028767,2]
[355087526,1740887507558,-752.51,0.00028767,2]
[355087528,1740887507567,-1557.28,0.00028767,2]
[355087530,1740887507576,-870.61,0.00028767,2]
[355087532,1740887507586,-1783.03,0.00028767,2]
[355087534,1740887507597,-533.75,0.00028767,2]
[355087536,1740887507610,-2012.85,0.00028767,2]
[355087538,1740887507620,-1176.97,0.00028767,2]
[355087540,1740887507630,-844.33,0.00028767,2]
[355087542,1740887507640,-1475.57,0.00028767,2]
[355087544,1740887507651,-1746.05,0.00028767,2]
[355087546,1740887507660,-599.92,0.00028767,2]
[355087548,1740887507669,-500.0,0.00028767,2]
[355087550,1740887507679,-1535.97,0.00028767,2]
[355087552,1740887507691,-1274.93,0.00028767,2]
[355087554,1740887507701,-500.0,0.00028767,2]
[355087556,1740887507711,-608.12,0.00028767,2]
[355087558,1740887507721,-515.13,0.00028767,2]
[355087560,1740887507730,-733.69,0.00028767,2]
[355087562,1740887507741,-560.4,0.00028767,2]
[355087564,1740887507750,-500.0,0.00028767,2]
[355087566,1740887507759,-1341.6,0.00028767,2]
[355087568,1740887507769,-1584.9,0.00028767,2]
[355087570,1740887507778,-1078.1,0.00028767,2]
[355087572,1740887507787,-1521.75,0.00028767,2]
[355087574,1740887507796,-1865.0,0.00028767,2]
[355087576,1740887507805,-500.0,0.00028767,2]
[355087578,1740887507815,-1655.28,0.00028767,2]
[355087580,1740887507824,-500.0,0.00028767,2]
[355087582,1740887507834,-1038.07,0.00028767,2]
[355087584,1740887507843,-500.0,0.00028767,2]
[355087586,1740887507853,-742.83,0.00028767,2]
[355087588,1740887507862,-938.31,0.00028767,2]
[355087590,1740887507871,-1459.72,0.00028767,2]
[355087592,1740887507880,-532.91,0.00028767,2]
[355087594,1740887507890,-500.0,0.00028767,2]
[355087596,1740887507899,-994.97,0.00028767,2]
[355087598,1740887507908,-500.0,0.00028767,2]
[355087600,1740887507917,-709.92,0.00028767,2]
[355087602,1740887507926,-1170.83,0.00028767,2]
[355087604,1740887507935,-500.0,0.00028767,2]
[355087606,1740887507945,-1135.5,0.00028767,2]
[355087608,1740887507954,-839.78,0.00028767,2]
[355087609,1740887507963,-707.46,0.00028767,2]
[355087611,1740887507972,-500.0,0.00028767,2]
[355087613,1740887507981,-696.66,0.00028767,2]
[355087615,1740887507991,-619.89,0.00028767,2]
[355087616,1740887508000,-500.0,0.00028767,2]
[355087617,1740887508009,-590.17,0.00028767,2]
[355087618,1740887508018,-1502.86,0.00028767,2]
[355087619,1740887508028,-536.55794374,0.00028767,2]
[355087620,1740887508037,-500.0,0.00028767,2]
[355087621,1740887508046,-1326.11,0.00028767,2]
[355087622,1740887508055,-522.59,0.00028767,2]
[355087624,1740887508064,-863.92,0.00028767,2]
[355087626,1740887508073,-500.0,0.00028767,2]
[355087628,1740887508085,-500.0,0.00028767,2]
[355087629,1740887508095,-1570.35,0.00028767,2]
[355087631,1740887508104,-1416.37,0.00028767,2]
[355087633,1740887508114,-599.84,0.00028767,2]
[355087636,1740887508135,-1711.31,0.00028767,2]
[355087638,1740887508144,-170.6256772,0.00028779,2]
[355087639,1740887508154,-200.0,0.00028785,2]
[355087641,1740887508163,-284.76176158,0.00028866,5]